{"text_format":"1","workbook":"xlsx","n_sheets":8,"sheets":["Index","General Info","Financial Results","Taxonomy","Asset Liabilities","Segment","TextBlock","OCI"],"not_rendered":{"charts":0,"images":1,"macros":1,"external_links":0,"defined_names":6,"comments":0,"pivot_tables":0},"unopened":[],"bounds":{"document_bytes":16777216,"sheet_cells":100000,"rows_first":2000,"rows_last":500,"rows_between":2000,"halvings":0,"cell_chars":16384,"cell_head_chars":4096},"cells_cut":0,"cells_raw":0,"read":"whole","date_system":"1900"}

{"sheet":"Index","index":0,"n_rows":50,"n_cols":10,"rows_kept":50,"cut":false,"hidden":false,"merged":[[49,3,49,9],[36,3,36,9],[37,3,37,9],[38,3,38,9],[39,3,39,9],[42,3,42,9],[43,3,43,9],[44,3,44,9],[45,3,45,9],[46,3,46,9],[47,3,47,9],[48,3,48,9],[35,3,35,9],[21,3,21,9],[22,3,22,9],[25,3,25,9],[26,4,26,8],[27,4,27,8],[28,4,28,8],[29,4,29,8],[32,3,32,9],[33,3,33,9],[34,3,34,9],[30,4,30,8],[20,3,20,9],[5,4,5,8],[6,5,6,8],[7,5,7,8],[8,5,8,8],[9,5,9,8],[12,3,12,9],[13,3,13,9],[14,3,14,9],[17,3,17,9],[18,3,18,9],[19,3,19,9]]}
[]
[]
[]
[]
[]
[null,null,null,null,"                                      XBRL Excel Utility"]
[null,null,null,null,"1.","Overview"]
[null,null,null,null,"2.","Before you begin"]
[null,null,null,null,"3.","Index"]
[null,null,null,null,"4.","Steps for filing - Financial Results - Ind AS Format"]
[]
[]
[null,null,null,"1. Overview"]
[null,null,null,"The excel utility can be used for creating the XBRL/XML file for efiling of Financial Results"]
[null,null,null,"XBRL filling consists of two processes. Firstly generation of XBRL/XML file and upload of generated XBRL/XML file to BSE Listing Center Website (www.listing.bseindia.com) ."]
[]
[]
[null,null,null," 2.  Before you begin"]
[null,null,null,"1. The version of Microsoft Excel in your system should be Microsoft Office Excel 2007 and above."]
[null,null,null,"2. The system should have a file compression software to unzip excel utility file."]
[null,null,null,"3. Make sure that you have downloaded the latest Excel Utility from BSE Website to your local system."]
[null,null,null,"4. Make sure that you have downloaded the Chrome Browser to view report generated from Excel utility"]
[null,null,null,"5. Please enable the Macros (if disabled) as per instructions given in manual, so that all the functionalities of  Excel Utility works fine. Please first go through Enable Macro - Manual attached with zip file."]
[]
[]
[null,null,null,"3. Index "]
[null,null,null,1,"Details of general information about company",null,null,null,null,"General Info"]
[null,null,null,2,"Financial Result By Companies Other than Banks",null,null,null,null,"Quarterly"]
[null,null,null,3,"Statement of Asset and Liabilities",null,null,null,null,"Asset Liabilities"]
[null,null,null,4,"Format of Reporting of Segment wise Revenue, Result and Capital Employed along with the quartely results",null,null,null,null,"Segment"]
[null,null,null,5,"OCI (Other Comprehensive Income)",null,null,null,null,"OCI"]
[]
[null,null,null,"4. Steps for Filing Of  Financial Results"]
[null,null,null,"I.  Fill up the data: Navigate to each field of every section in the sheet to provide applicable data in correct format.  (Formats will get reflected while filling data.)  \n   - Use paste special command to paste data from other sheet."]
[null,null,null,"II. Validating Sheets:  Click on the ''Validate \"  button to ensure that the sheet has been properly filled and also data has been furnished in proper format. If there are some errors on the sheet, excel utility will prompt you about the same."]
[null,null,null,"III. Validate All Sheets:  Click on the ''Home\"  button. And then click on \"Validate All Sheet\" button to ensure that all sheets has been properly filled and validated successfully. If there are some errors on the sheet, excel utility will prompt you about the same and stop validation at the same time. After correction, once again follow the same procedure to validate all sheets."]
[null,null,null,"Excel Utility will not allow you to generate XBRL/XML until you rectify all errors. "]
[null,null,null,"IV. Generate XML :   Excel Utility will not allow you to generate XBRL/XML unless successful validation of all sheet is completed. Now click on 'Generate XML'' to generate XBRL/XML file. \n    - Save the XBRL/XML file in your desired folder in local system. "]
[null,null,null,"V. Generate Report :   Excel Utility will allow you to generate Report. Now click on 'Generate Report'' to generate html report.   \n     - Save the HTML Report file in your desired folder in local system.     \n     - To view HTML Report open \"Chrome Web Browser\" . \n     - To print report in PDF Format, Click on print button and save as PDF. "]
[null,null,null,"VI. Upload XML file to BSE Listing Center: For uploading the XBRL/XML file generated through  Utility, login to BSE Listing Center and upload generated xml file. On Upload screen provide the required information and browse to select XML file and submit the XML.\n"]
[]
[]
[null,null,null,"5. Fill up the data in excel utility"]
[null,null,null,"1. Cells with red fonts indicate mandatory fields. "]
[null,null,null,"2. If mandatory field is left empty, then Utility will not allow you to proceed further for generating XML."]
[null,null,null,"3. You are not allowed to enter data in the Grey Cells."]
[null,null,null,"4. If fields are not applicable to your company then leave it blank. Do not insert Zero unless it is a mandatory field."]
[null,null,null,"5. Data provided must be in correct format, otherwise Utility will not allow you to proceed further for generating XML."]
[null,null,null,"6. Select data from \"Dropdown list\" wherever applicable. "]
[null,null,null,"7. Adding Notes:  Click on \"Add Notes\" button to add notes "]

{"sheet":"General Info","index":1,"n_rows":71,"n_cols":27,"rows_kept":71,"cut":false,"hidden":false,"merged":[[21,5,22,7],[25,5,25,7],[4,3,4,7],[5,5,11,7],[12,7,15,7],[16,5,19,7],[20,5,20,7]]}
[null,null,null,null,null,null,null,null,null,null,null,null,null,null,null,null,null,"SME","Non SME",null,null,null,null,null,"First quarter","First quarter","Declaration of unmodified opinion"]
[null,null,null,null,null,null,null,null,null,null,null,null,null,null,null,null,null,"Actual",null,"Audited",null,null,null,null,"Half yearly","Half yearly","Statement on impact of audit qualification"]
[null,null,null,null,null,null,null,null,null,null,null,null,null,null,null,null,"Consolidated","Thousands",null,"Unaudited",null,null,null,null,"Third quarter","Third quarter","Not applicable"]
[null,null,null,null,"*Validate General Information to open other sheets",null,null,null,null,null,null,null,null,null,null,null,"Standalone","Lakhs","Single segment",null,null,null,null,null,"Fourth quarter","Fourth quarter"]
[null,null,null,"General information about company",null,null,null,null,null,null,null,null,null,null,null,null,null,"Millions","Multi segment","First quarter","Half yearly",null,null,null,"Yearly","Fifth quarter"]
[null,null,null,"Scrip code",530883,null,null,null,null,null,null,null,null,null,null,null,null,"Billions","Geographical","Half yearly","Yearly",null,null,null,null,"Yearly"]
[null,null,null,"NSE Symbol",null,null,null,null,null,null,null,null,null,null,null,null,null,"Crores",null,"Third quarter"]
[null,null,null,"MSEI Symbol",null,null,null,null,null,null,null,null,null,null,null,null,null,null,null,"Yearly"]
[null,null,null,"ISIN*","INE366G01022"]
[null,null,null,"Name of company","Super Crop Safe Limited",null,null,null,null,null,null,null,null,null,"Equity"]
[null,null,null,"Type of company",null,null,null,null,null,null,null,null,null,null,"Debt securities and/or non-cumulative redeemable preference shares",null,"00"]
[null,null,null,"Class of security","Equity",null,null,null,null,null,null,null,null,null,"Equity and Debt",null,"01","01","2014",null,null,null,null,null,null,15]
[null,null,null,"Date of start of financial year","01","04",2018,null,null,null,null,null,null,null,null,null,"02","02","2015"]
[null,null,null,"Date of end of financial year","31","03",2019,null,null,null,null,null,null,null,null,null,"03","03","2016"]
[null,null,null,"Date of board meeting when results were approved","08","08",2018,null,null,null,null,null,null,null,null,null,"04","04",2017]
[null,null,null,"Date on which prior intimation of the meeting for considering financial results was informed to the exchange","31","07",2018,null,null,null,null,null,null,null,null,null,"05","05",2018]
[null,null,null,"Description of presentation currency","INR",null,null,null,null,null,null,null,null,null,null,null,"06","06",2019]
[null,null,null,"Level of rounding used in financial results","Lakhs",null,null,null,null,null,null,null,null,null,null,null,"07","07",2020,null,null,null,null,null,null,{"$f":"IF($E$12=$O$11,Dbt,IF($Z$12=15,Diff15,IF($Z$12=18,Diff18,IF($Z$12<=12,Diff12,Eqt))))","v":{"$error":"#VALUE!"}}]
[null,null,null,"Reporting Quarter","First quarter",null,null,null,null,null,null,null,null,null,null,null,"08","08",2021]
[null,null,null,"Nature of report standalone or consolidated","Standalone",null,null,null,null,null,null,null,null,null,null,null,"09","09",2022]
[null,null,null,"Whether results are audited or unaudited","Unaudited","For Current Quarter Only",null,null,null,null,null,null,null,null,null,null,"10","10",2023]
[null,null,null,"Segment Reporting","Single segment",null,null,null,null,null,null,null,null,null,null,null,"11","11",2024]
[null,null,null,"Description of single segment","Manufacturer of Agro Chemicals",null,null,null,null,null,null,null,null,null,null,null,"12","12",2025]
[null,null,null,"Start date and time of board meeting","08-08-2018","11","00","HH:MM",null,null,null,null,null,null,null,null,"13",null,2026,null,null,null,null,null,null,"Start date of board meeting"]
[null,null,null,"End date and time of board meeting","08-08-2018","12",50,"HH:MM",null,null,null,null,null,null,null,null,"14",null,2027,null,null,null,null,null,null,"End date of board meeting"]
[null,null,null,"Declaration of unmodified opinion or statement on impact of audit qualification","Not applicable",null,null,null,null,null,null,null,null,null,null,null,"15"]
[null,null,null,null,null,null,null,null,null,null,null,null,null,null,null,null,"16"]
[null,null,null,null,null,null,null,null,null,null,null,null,null,null,null,null,"17"]
[null,null,null,null,null,null,null,null,null,null,null,null,null,null,null,null,"18"]
[null,null,null,null,null,null,null,null,null,null,null,null,null,null,null,null,"19"]
[null,null,null,null,null,null,null,null,null,null,null,null,null,null,null,null,"20"]
[null,null,null,null,null,null,null,null,null,null,null,null,null,null,null,null,"21"]
[null,null,null,null,null,null,null,null,null,null,null,null,null,null,null,null,"22"]
[null,null,null,null,null,null,null,null,null,null,null,null,null,null,null,null,"23"]
[null,null,null,null,null,null,null,null,null,null,null,null,null,null,null,null,"24"]
[null,null,null,null,null,null,null,null,null,null,null,null,null,null,null,null,"25"]
[null,null,null,null,null,null,null,null,null,null,null,null,null,null,null,null,"26"]
[null,null,null,null,null,null,null,null,null,null,null,null,null,null,null,null,"27"]
[null,null,null,null,null,null,null,null,null,null,null,null,null,null,null,null,"28"]
[null,null,null,null,null,null,null,null,null,null,null,null,null,null,null,null,"29"]
[null,null,null,null,null,null,null,null,null,null,null,null,null,null,null,null,"30"]
[null,null,null,null,null,null,null,null,null,null,null,null,null,null,null,null,"31"]
[null,null,null,null,null,null,null,null,null,null,null,null,null,null,null,null,32]
[null,null,null,null,null,null,null,null,null,null,null,null,null,null,null,null,33]
[null,null,null,null,null,null,null,null,null,null,null,null,null,null,null,null,34]
[null,null,null,null,null,null,null,null,null,null,null,null,null,null,null,null,35]
[null,null,null,null,null,null,null,null,null,null,null,null,null,null,null,null,36]
[null,null,null,null,null,null,null,null,null,null,null,null,null,null,null,null,37]
[null,null,null,null,null,null,null,null,null,null,null,null,null,null,null,null,38]
[null,null,null,null,null,null,null,null,null,null,null,null,null,null,null,null,39]
[null,null,null,null,null,null,null,null,null,null,null,null,null,null,null,null,40]
[null,null,null,null,null,null,null,null,null,null,null,null,null,null,null,null,41]
[null,null,null,null,null,null,null,null,null,null,null,null,null,null,null,null,42]
[null,null,null,null,null,null,null,null,null,null,null,null,null,null,null,null,43]
[null,null,null,null,null,null,null,null,null,null,null,null,null,null,null,null,44]
[null,null,null,null,null,null,null,null,null,null,null,null,null,null,null,null,45]
[null,null,null,null,null,null,null,null,null,null,null,null,null,null,null,null,46]
[null,null,null,null,null,null,null,null,null,null,null,null,null,null,null,null,47]
[null,null,null,null,null,null,null,null,null,null,null,null,null,null,null,null,48]
[null,null,null,null,null,null,null,null,null,null,null,null,null,null,null,null,49]
[null,null,null,null,null,null,null,null,null,null,null,null,null,null,null,null,50]
[null,null,null,null,null,null,null,null,null,null,null,null,null,null,null,null,51]
[null,null,null,null,null,null,null,null,null,null,null,null,null,null,null,null,52]
[null,null,null,null,null,null,null,null,null,null,null,null,null,null,null,null,53]
[null,null,null,null,null,null,null,null,null,null,null,null,null,null,null,null,54]
[null,null,null,null,null,null,null,null,null,null,null,null,null,null,null,null,55]
[null,null,null,null,null,null,null,null,null,null,null,null,null,null,null,null,56]
[null,null,null,null,null,null,null,null,null,null,null,null,null,null,null,null,57]
[null,null,null,null,null,null,null,null,null,null,null,null,null,null,null,null,58]
[null,null,null,null,null,null,null,null,null,null,null,null,null,null,null,null,59]
[null,null,null,null,null,null,null,null,null,null,null,null,null,null,null,null,60]

{"sheet":"Financial Results","index":2,"n_rows":79,"n_cols":19,"rows_kept":79,"cut":false,"hidden":false,"merged":[[72,5,72,6],[69,5,69,6],[66,5,66,6],[65,5,65,6],[63,5,63,6],[7,3,7,6],[8,3,8,4],[41,5,41,6],[60,5,60,6],[57,5,57,6],[54,5,54,6],[14,5,14,6],[18,5,18,6],[25,5,25,6],[13,4,13,6]]}
[]
[]
[]
[]
[]
[]
[]
[null,null,null,"Financial Results – Ind-AS"]
[null,null,null,"Particulars",null,"3 months/ 6 months ended         (dd-mm-yyyy)","Year to date figures for current period ended                              (dd-mm-yyyy)"]
[null,null,null,"A","Date of start of reporting period","01-04-2018","01-04-2018"]
[null,null,null,"B","Date of end of reporting period","30-06-2018","30-06-2018"]
[null,null,null,"C","Whether results are audited or unaudited","Unaudited","Unaudited",null,null,null,null,null,null,null,"Audited"]
[null,null,null,"D","Nature of report standalone or consolidated",{"$f":"+IF(COUNTA('General Info'!E20),'General Info'!E20,\"\")","v":"Standalone"},{"$f":"+IF(COUNTA('General Info'!E20),'General Info'!E20,\"\")","v":"Standalone"},null,null,null,null,null,null,null,"Unaudited"]
[null,null,null,"Part I","Blue color marked fields are non-mandatory.                                                                                                                                                                                For Consolidated Results, if the company has no figures for 3 months / 6 months ended, in such case zero shall be inserted in the said column."]
[null,null,null,1,"Income"]
[null,null,null,null,"Revenue from operations",1530.37,{"$f":"+IF(COUNT(F16),+F16,\"\")","v":1530.37},null,null,null,null,null,null,null,null,null,null,null,{"$f":"+IF(COUNT(F16),+F16,\"\")","v":1530.37}]
[null,null,null,null,"Other income",0.08,{"$f":"+IF(COUNT(F17),+F17,\"\")","v":0.08},null,null,null,null,null,null,null,null,null,null,null,{"$f":"+IF(COUNT(F17),+F17,\"\")","v":0.08}]
[null,null,null,null,"Total income",{"$f":"+IF(COUNT(F16:F17),ROUND(SUM(F16:F17),3),\"\")","v":1530.45},{"$f":"+IF(COUNT(G16:G17),ROUND(SUM(G16:G17),3),\"\")","v":1530.45},null,null,null,null,null,null,null,null,null,null,null,1530.45]
[null,null,null,2,"Expenses",null,null,null,null,null,null,null,null,null,null,null,null,null,""]
[null,null,null,"(a)","Cost of materials consumed",1152.6500000000001,{"$f":"+IF(COUNT(F20),+F20,\"\")","v":1152.6500000000001},null,null,null,null,null,null,null,null,null,null,null,1152.6500000000001]
[null,null,null,"(b)","Purchases of stock-in-trade",52.07,52.07,null,null,null,null,null,null,null,null,null,null,null,52.07]
[null,null,null,"(c)","Changes in inventories of finished goods, work-in-progress and stock-in-trade",-34.979999999999997,-34.979999999999997,null,null,null,null,null,null,null,null,null,null,null,-34.979999999999997]
[null,null,null,"(d)","Employee benefit expense  ",68.8,68.8,null,null,null,null,null,null,null,null,null,null,null,68.8]
[null,null,null,"(e)","Finance costs",29.88,29.88,null,null,null,null,null,null,null,null,null,null,null,29.88]
[null,null,null,"(f)","Depreciation, depletion and amortisation expense",19.37,19.37,null,null,null,null,null,null,null,null,null,null,null,19.37]
[null,null,null,"(f)","Other Expenses",null,null,null,null,null,null,null,null,null,null,null,null,null,""]
[null,null,null,1,"Other Expenses",116.73,{"$f":"+IF(COUNT(F27),+F27,\"\")","v":116.73},null,null,null,null,null,null,null,null,null,null,null,116.73]
[null,null,null,2,null,null,"",null,null,null,null,null,null,null,null,null,null,null,""]
[null,null,null,3,null,null,"",null,null,null,null,null,null,null,null,null,null,null,""]
[null,null,null,4,null,null,"",null,null,null,null,null,null,null,null,null,null,null,""]
[null,null,null,5,null,null,"",null,null,null,null,null,null,null,null,null,null,null,""]
[null,null,null,6,null,null,"",null,null,null,null,null,null,null,null,null,null,null,""]
[null,null,null,7,null,null,"",null,null,null,null,null,null,null,null,null,null,null,""]
[null,null,null,8,null,null,"",null,null,null,null,null,null,null,null,null,null,null,""]
[null,null,null,9,null,null,"",null,null,null,null,null,null,null,null,null,null,null,""]
[null,null,null,10,null,null,"",null,null,null,null,null,null,null,null,null,null,null,""]
[null,null,null,null,"Total other expenses",{"$f":"+IF(COUNT(F27:F36),ROUND(SUM(F27:F36),3),\"\")","v":116.73},{"$f":"+IF(COUNT(G27:G36),ROUND(SUM(G27:G36),3),\"\")","v":116.73},null,null,null,null,null,null,null,null,null,null,null,116.73]
[null,null,null,null,"Total  expenses",{"$f":"+IF(COUNT(F37,F20:F25),SUM(F37,F20:F25),\"\")","v":1404.52},1404.52,null,null,null,null,null,null,null,null,null,null,null,1404.52]
[null,null,null,3,"Total profit before exceptional items and tax",{"$f":"+IF(COUNT(F38,F18),+ROUND(SUM(F18)-SUM(F38),3),\"\")","v":125.93},125.93,null,null,null,null,null,null,null,null,null,null,null,125.93]
[null,null,null,4,"Exceptional items ",0,{"$f":"+IF(COUNT(F40),+F40,\"\")","v":0},null,null,null,null,null,null,null,null,null,null,null,0]
[null,null,null,5,"Total profit before tax",{"$f":"+IF(COUNT(F39:F40),+ROUND(SUM(F39)+SUM(F40),3),\"\")","v":125.93},{"$f":"+IF(COUNT(G39:G40),+ROUND(SUM(G39)+SUM(G40),3),\"\")","v":125.93},null,null,null,null,null,null,null,null,null,null,null,125.93]
[null,null,null,7,"Tax expense",null,null,null,null,null,null,null,null,null,null,null,null,null,""]
[null,null,null,8,"Current tax",14.9,{"$f":"+IF(COUNT(F43),+F43,\"\")","v":14.9},null,null,null,null,null,null,null,null,null,null,null,14.9]
[null,null,null,9,"Deferred tax",-1.96,{"$f":"+IF(COUNT(F44),+F44,\"\")","v":-1.96},null,null,null,null,null,null,null,null,null,null,null,-1.96]
[null,null,null,10,"Total tax expenses",{"$f":"+IF(COUNT(F43:F44),+ROUND(SUM(F43:F44),3),\"\")","v":12.94},{"$f":"+IF(COUNT(G43:G44),+ROUND(SUM(G43:G44),3),\"\")","v":12.94},null,null,null,null,null,null,null,null,null,null,null,12.94]
[null,null,null,11,"Net movement in regulatory deferral account balances related to profit or loss and the related deferred tax movement",0,{"$f":"+IF(COUNT(F46),+F46,\"\")","v":0},null,null,null,null,null,null,null,null,null,null,null,0]
[null,null,null,14,"Net Profit Loss for the period from continuing operations",{"$f":"+IF(COUNT(F41,F45,F46),+ROUND(SUM(F41)-SUM(F45)+SUM(F46),3),\"\")","v":112.99},{"$f":"+IF(COUNT(G41,G45,G46),+ROUND(SUM(G41)-SUM(G45)+SUM(G46),3),\"\")","v":112.99},null,null,null,null,null,null,null,null,null,null,null,112.99]
[null,null,null,15,"Profit (loss) from discontinued operations before tax",0,{"$f":"+IF(COUNT(F48),+F48,\"\")","v":0},null,null,null,null,null,null,null,null,null,null,null,0]
[null,null,null,16,"Tax expense of discontinued operations",0,{"$f":"+IF(COUNT(F49),+F49,\"\")","v":0},null,null,null,null,null,null,null,null,null,null,null,0]
[null,null,null,17,"Net profit (loss) from discontinued operation after tax",{"$f":"+IF(COUNT(F48:F49),+ROUND(SUM(F48)-SUM(F49),3),\"\")","v":0},{"$f":"+IF(COUNT(G48:G49),+ROUND(SUM(G48)-SUM(G49),3),\"\")","v":0},null,null,null,null,null,null,null,null,null,null,null,0]
[null,null,null,19,"Share of profit (loss) of associates and joint ventures accounted for using equity method",0,{"$f":"+IF(COUNT(F51),+F51,\"\")","v":0},null,null,null,null,null,null,null,null,null,null,null,0]
[null,null,null,21,"Total profit (loss) for period",{"$f":"+IF(COUNT(F47,F50,F51),ROUND(SUM(F47)+SUM(F50:F51),3),\"\")","v":112.99},{"$f":"+IF(COUNT(G47,G50,G51),ROUND(SUM(G47)+SUM(G50:G51),3),\"\")","v":112.99},null,null,null,null,null,null,null,null,null,null,null,112.99]
[null,null,null,22,"Other comprehensive income net of taxes",0.12,{"$f":"+IF(COUNT(F53),+F53,\"\")","v":0.12},null,null,null,null,null,null,null,null,null,null,null,0.12]
[null,null,null,23,"Total Comprehensive Income for the period",{"$f":"+IF(COUNT(F52:F53),SUM(F52:F53),\"\")","v":113.11},{"$f":"+IF(COUNT(G52:G53),SUM(G52:G53),\"\")","v":113.11},null,null,null,null,null,null,null,null,null,null,null,113.11]
[null,null,null,24,"Total profit or loss, attributable to",null,null,null,null,null,null,null,null,null,null,null,null,null,""]
[null,null,null,null,"Profit or loss, attributable to owners of parent",null,null,null,null,null,null,null,null,null,null,null,null,null,""]
[null,null,null,null,"Total profit or loss, attributable to non-controlling interests",null,null,null,null,null,null,null,null,null,null,null,null,null,""]
[null,null,null,25,"Total Comprehensive income for the period attributable to",null,null,null,null,null,null,null,null,null,null,null,null,null,""]
[null,null,null,null,"Comprehensive income for the period attributable to owners of parent",0,{"$f":"+IF(COUNT(F59),+F59,\"\")","v":0},null,null,null,null,null,null,null,null,null,null,null,0]
[null,null,null,null,"Total comprehensive income for the period attributable to owners of parent non-controlling interests",0,{"$f":"+IF(COUNT(F60),+F60,\"\")","v":0},null,null,null,null,null,null,null,null,null,null,null,0]
[null,null,null,26,"Details of equity share capital",null,null,null,null,null,null,null,null,null,null,null,null,null,""]
[null,null,null,null,"Paid-up equity share capital",784.89,{"$f":"+IF(COUNT(F62),+F62,\"\")","v":784.89},null,null,null,null,null,null,null,null,null,null,null,784.89]
[null,null,null,null,"Face value of equity share capital",2,{"$f":"+IF(COUNT(F63),+F63,\"\")","v":2},null,null,null,null,null,null,null,null,null,null,null,2]
[null,null,null,27,"Details of debt securities",null,null,null,null,null,null,null,null,null,null,null,null,null,""]
[null,null,null,28,"Reserves excluding revaluation reserve",null,null,null,null,null,null,null,null,null,null,null,null,null,""]
[null,null,null,29,"Earnings per share",null,null,null,null,null,null,null,null,null,null,null,null,null,""]
[null,null,null,"i","Earnings per equity share for continuing operations",null,null,null,null,null,null,null,null,null,null,null,null,null,""]
[null,null,null,null,"Basic earnings (loss) per share from continuing operations",0.28999999999999998,{"$f":"+IF(COUNT(F68),+F68,\"\")","v":0.28999999999999998},null,null,null,null,null,null,null,null,null,null,null,0.28999999999999998]
[null,null,null,null,"Diluted earnings (loss) per share from continuing operations",0.28999999999999998,{"$f":"+IF(COUNT(F69),+F69,\"\")","v":0.28999999999999998},null,null,null,null,null,null,null,null,null,null,null,0.28999999999999998]
[null,null,null,"ii","Earnings per equity share for discontinued operations",null,null,null,null,null,null,null,null,null,null,null,null,null,""]
[null,null,null,null,"Basic earnings (loss) per share from discontinued operations",0.28999999999999998,{"$f":"+IF(COUNT(F71),+F71,\"\")","v":0.28999999999999998},null,null,null,null,null,null,null,null,null,null,null,0.28999999999999998]
[null,null,null,null,"Diluted earnings (loss) per share from discontinued operations",0.28999999999999998,{"$f":"+IF(COUNT(F72),+F72,\"\")","v":0.28999999999999998},null,null,null,null,null,null,null,null,null,null,null,0.28999999999999998]
[null,null,null,"ii","Earnings per equity share",null,null,null,null,null,null,null,null,null,null,null,null,null,""]
[null,null,null,null,"Basic earnings (loss) per share from continuing and discontinued operations",{"$f":"+IF(COUNT(F68,F71),SUM(F68,F71),\"\")","v":0.57999999999999996},{"$f":"+IF(COUNT(G68,G71),SUM(G68,G71),\"\")","v":0.57999999999999996},null,null,null,null,null,null,null,null,null,null,null,0.57999999999999996]
[null,null,null,null,"Diluted earnings (loss) per share from continuing and discontinued operations",{"$f":"+IF(COUNT(F69,F72),SUM(F69,F72),\"\")","v":0.57999999999999996},{"$f":"+IF(COUNT(G69,G72),SUM(G69,G72),\"\")","v":0.57999999999999996},null,null,null,null,null,null,null,null,null,null,null,0.57999999999999996]
[null,null,null,30,"Debt equity ratio",null,{"$f":"+IF(COUNT(F76),+F76,\"\")","v":""},null,null,null,null,null,null,null,null,null,null,null,""]
[null,null,null,31,"Debt service coverage ratio",null,{"$f":"+IF(COUNT(F77),+F77,\"\")","v":""},null,null,null,null,null,null,null,null,null,null,null,""]
[null,null,null,32,"Interest service coverage ratio",null,{"$f":"+IF(COUNT(F78),+F78,\"\")","v":""},null,null,null,null,null,null,null,null,null,null,null,{"$f":"+IF(COUNT(F78),+F78,\"\")","v":""}]
[null,null,null,33,"Disclosure of notes on financial results"]

{"sheet":"Taxonomy","index":3,"n_rows":165,"n_cols":5,"rows_kept":165,"cut":false,"hidden":true,"merged":[]}
["element","label","type","periodType","validation"]
["General Information"]
["ScripCode","Scrip code","in-bse-fin-types:ScripCode","duration","This is a mandatory field. Should be valid SCRIP CODE  as per BSE Scrip Code Format. "]
["Symbol","NSE Symbol","xbrli:stringItemType","duration"]
["MSEISymbol","MSEI Symbol","xbrli:stringItemType","duration"]
["ISIN","ISIN*","in-bse-fin-types:ISIN","duration"]
["NameOfTheCompany","Name of company","xbrli:stringItemType","duration"]
["TypeOfCompany","Type of company","in-bse-fin-types:TypeOfCompany","duration"]
["ClassOfSecurity","Class of security","in-bse-fin-types:ClassOfSecurity","duration"]
["DateOfStartOfFinancialYear","Date of start of financial year","xbrli:dateItemType","duration"]
["DateOfEndOfFinancialYear","Date of end of financial year","xbrli:dateItemType","duration"]
["DateOfStartOfReportingPeriod","Date of start of reporting period","xbrli:dateItemType","duration"]
["DateOfEndOfReportingPeriod","Date of end of reporting period","xbrli:dateItemType","duration"]
["DateOfBoardMeetingWhenFinancialResultsWereApproved","Date of board meeting when results were approved","xbrli:dateItemType","duration","Date of board meeting when results were approved shall not be before the current financial year."]
["DateOnWhichPriorIntimationOfTheMeetingForConsideringFinancialResultsWasInformedToTheExchange","Date on which prior intimation of the meeting for considering financial results was informed to the exchange","xbrli:dateItemType","duration","\"Date on which prior intimation of the meeting for considering financial results was informed to the exchange\" shall not be later than \"Date of board meeting when results were approved\" and shall not be before the current financial year."]
["NatureOfReportStandaloneConsolidated","Nature of report standalone or consolidated","xbrli:stringItemType","duration"]
["ReportingQuarter","Reporting Quarter","xbrli:stringItemType","duration"]
["DescriptionOfPresentationCurrency","Description of presentation currency","xbrli:stringItemType","duration"]
["LevelOfRoundingUsedInFinancialStatements","Level of rounding used in financial results","in-bse-fin-types:LevelOfRounding","duration"]
["WhetherResultsAreAuditedOrUnaudited","Whether results are audited or unaudited","xbrli:stringItemType","duration"]
["IsCompanyReportingMultisegmentOrSingleSegment","Segment Reporting","xbrli:stringItemType","duration"]
["DescriptionOfSingleSegment","Description of single segment","xbrli:stringItemType","duration","This is a mandatory field as \"Single Segment\" selected in Segement Reporting field."]
["DateOfStartOfBoardMeeting","Start date of board meeting","xbrli:dateItemType","duration","Start date of board meeting would be the next quarter then the reporting quarter (e.g. if results are submitted for June, quarter start time and end time would be from July) and shall not be earlier than Date of Prior Intimation."]
["DateOfEndOfBoardMeeting","End date of board meeting","xbrli:dateItemType","duration","End date of board meeting must be after or same day of start date of bord meeting and  would be the next quarter then the reporting quarter (e.g. if results are submitted for June, quarter start time and end time would be from July)."]
["StartTimeOfBoardMeeting",{"$f":"'General Info'!D24","v":"Start date and time of board meeting"},"xbrli:timeItemType","duration"]
["EndTimeOfBoardMeeting",{"$f":"'General Info'!D25","v":"End date and time of board meeting"},"xbrli:timeItemType","duration","\"End time of board meeting\" must be greater than \"Start time of board meeting\""]
["DeclarationOfUnmodifiedOpinionOrStatementOnImpactOfAuditQualification","Declaration of unmodified opinion or statement on impact of audit qualification","in-bse-fin-types:Declaration","duration","\"Not applicable\" is not allowed for \"Yearly\" reporting quarter."]
["Financial Results"]
["RevenueFromOperations","Revenue from operations","xbrli:monetaryItemType","duration"]
["OtherIncome","Other income","xbrli:monetaryItemType","duration"]
["Income","Total income","xbrli:monetaryItemType","duration"]
["CostOfMaterialsConsumed","Cost of materials consumed","xbrli:monetaryItemType","duration"]
["PurchasesOfStockInTrade","Purchases of stock-in-trade","xbrli:monetaryItemType","duration"]
["ChangesInInventoriesOfFinishedGoodsWorkInProgressAndStockInTrade","Changes in inventories of finished goods, work-in-progress and stock-in-trade","xbrli:monetaryItemType","duration"]
["EmployeeBenefitExpense","Employee benefit expense  ","xbrli:monetaryItemType","duration"]
["FinanceCosts","Finance costs","xbrli:monetaryItemType","duration"]
["DepreciationDepletionAndAmortisationExpense","Depreciation, depletion and amortisation expense","xbrli:monetaryItemType","duration"]
["DescriptionOfOtherExpenses","Description of other expenses","xbrli:stringItemType","duration"]
["OtherExpenses","Other Expenses","xbrli:monetaryItemType","duration"]
["OtherExpenses","Total other expenses","xbrli:monetaryItemType","duration"]
["Expenses","Total  expenses","xbrli:monetaryItemType","duration"]
["ProfitBeforeExceptionalItemsAndTax","Total profit before exceptional items and tax","xbrli:monetaryItemType","duration"]
["ExceptionalItemsBeforeTax","Exceptional items ","xbrli:monetaryItemType","duration"]
["ProfitBeforeTax","Total profit before tax","xbrli:monetaryItemType","duration"]
["CurrentTax","Current tax","xbrli:monetaryItemType","duration"]
["DeferredTax","Deferred tax","xbrli:monetaryItemType","duration"]
["TaxExpense","Total tax expenses","xbrli:monetaryItemType","duration"]
["NetMovementInRegulatoryDeferralAccountBalancesRelatedToProfitOrLossAndTheRelatedDeferredTaxMovement","Net movement in regulatory deferral account balances related to profit or loss and the related deferred tax movement","xbrli:monetaryItemType","duration"]
["ProfitLossForPeriodFromContinuingOperations","Net Profit Loss for the period from continuing operations","xbrli:monetaryItemType","duration"]
["ProfitLossFromDiscontinuedOperationsBeforeTax","Profit (loss) from discontinued operations before tax","xbrli:monetaryItemType","duration"]
["TaxExpenseOfDiscontinuedOperations","Tax expense of discontinued operations","xbrli:monetaryItemType","duration"]
["ProfitLossFromDiscontinuedOperationsAfterTax","Net profit (loss) from discontinued operation after tax","xbrli:monetaryItemType","duration"]
["ShareOfProfitLossOfAssociatesAndJointVenturesAccountedForUsingEquityMethod","Share of profit (loss) of associates and joint ventures accounted for using equity method","xbrli:monetaryItemType","duration"]
["ProfitLossForPeriod","Total profit (loss) for period","xbrli:monetaryItemType","duration"]
["OtherComprehensiveIncomeNetOfTaxes","Other comprehensive income net of taxes","xbrli:monetaryItemType","duration"]
["ComprehensiveIncomeForThePeriod","Total Comprehensive Income for the period","xbrli:monetaryItemType","duration"]
["ProfitOrLossAttributableToOwnersOfParent","Profit or loss, attributable to owners of parent","xbrli:monetaryItemType","duration"]
["ProfitOrLossAttributableToNonControllingInterests","Total profit or loss, attributable to non-controlling interests","xbrli:monetaryItemType","duration"]
["ComprehensiveIncomeForThePeriodAttributableToOwnersOfParent","Comprehensive income for the period attributable to owners of parent","xbrli:monetaryItemType","duration"]
["ComprehensiveIncomeForThePeriodAttributableToOwnersOfParentNonControllingInterests","Total comprehensive income for the period attributable to owners of parent non-controlling interests","xbrli:monetaryItemType","duration"]
["PaidUpValueOfEquityShareCapital","Paid-up equity share capital","xbrli:monetaryItemType","duration"]
["FaceValueOfEquityShareCapital","Face value of equity share capital","num:perShareItemType","duration"]
["PaidUpValueOfDebtCapital","Paid-up debt capital","xbrli:monetaryItemType","duration"]
["FaceValueOfDebtSecurities","Face value of debt securities","num:perShareItemType","duration"]
["ReserveExcludingRevaluationReserves","Reserves excluding revaluation reserve","xbrli:monetaryItemType","duration"]
["DebentureRedemptionReserve","Debenture redemption reserve","xbrli:monetaryItemType","duration"]
["BasicEarningsLossPerShareFromContinuingOperations","Basic earnings (loss) per share from continuing operations","num:perShareItemType","duration"]
["DilutedEarningsLossPerShareFromContinuingOperations","Diluted earnings (loss) per share from continuing operations","num:perShareItemType","duration"]
["BasicEarningsLossPerShareFromDiscontinuedOperations","Basic earnings (loss) per share from discontinued operations","num:perShareItemType","duration"]
["DilutedEarningsLossPerShareFromDiscontinuedOperations","Diluted earnings (loss) per share from discontinued operations","num:perShareItemType","duration"]
["BasicEarningsLossPerShareFromContinuingAndDiscontinuedOperations","Basic earnings (loss) per share from continuing and discontinued operations","num:perShareItemType","duration"]
["DilutedEarningsLossPerShareFromContinuingAndDiscontinuedOperations","Diluted earnings (loss) per share from continuing and discontinued operations","num:perShareItemType","duration"]
["DebtEquityRatio","Debt equity ratio","num:percentItemType","duration"]
["DebtServiceCoverageRatio","Debt service coverage ratio","num:percentItemType","duration"]
["InterestServiceCoverageRatio","Interest service coverage ratio","num:percentItemType","duration"]
["DisclosureOfNotesOnFinancialResultsExplanatoryTextBlock","Disclosure of notes on financial results","nonnum:textBlockItemType","duration"]
["Asset Liabilities"]
["PropertyPlantAndEquipment","Property, plant and equipment","xbrli:monetaryItemType","instant"]
["CapitalWorkInProgress","Capital work-in-progress","xbrli:monetaryItemType","instant"]
["InvestmentProperty","Investment property","xbrli:monetaryItemType","instant"]
["Goodwill","Goodwill","xbrli:monetaryItemType","instant"]
["OtherIntangibleAssets","Other intangible assets","xbrli:monetaryItemType","instant"]
["IntangibleAssetsUnderDevelopment","Intangible assets under development","xbrli:monetaryItemType","instant"]
["BiologicalAssetsOtherThanBearerPlants","Biological assets other than bearer plants","xbrli:monetaryItemType","instant"]
["InvestmentsAccountedForUsingEquityMethod","Investments accounted for using equity method","xbrli:monetaryItemType","instant"]
["NoncurrentInvestments","Non-current investments","xbrli:monetaryItemType","instant"]
["TradeReceivablesNoncurrent","Trade receivables, non-current","xbrli:monetaryItemType","instant"]
["LoansNoncurrent","Loans, non-current","xbrli:monetaryItemType","instant"]
["OtherNoncurrentFinancialAssets","Other non-current financial assets","xbrli:monetaryItemType","instant"]
["NoncurrentFinancialAssets","Total non-current financial assets","xbrli:monetaryItemType","instant"]
["DeferredTaxAssetsNet","Deferred tax assets (net)","xbrli:monetaryItemType","instant"]
["OtherNoncurrentAssets","Other non-current assets","xbrli:monetaryItemType","instant"]
["NoncurrentAssets","Total non-current assets","xbrli:monetaryItemType","instant"]
["Inventories","Inventories","xbrli:monetaryItemType","instant"]
["CurrentInvestments","Current investments","xbrli:monetaryItemType","instant"]
["TradeReceivablesCurrent","Trade receivables, current","xbrli:monetaryItemType","instant"]
["CashAndCashEquivalents","Cash and cash equivalents","xbrli:monetaryItemType","instant"]
["BankBalanceOtherThanCashAndCashEquivalents","Bank balance other than cash and cash equivalents","xbrli:monetaryItemType","instant"]
["LoansCurrent","Loans, current","xbrli:monetaryItemType","instant"]
["OtherCurrentFinancialAssets","Other current financial assets","xbrli:monetaryItemType","instant"]
["CurrentFinancialAssets","Total current financial assets","xbrli:monetaryItemType","instant"]
["CurrentTaxAssets","Current tax assets (net)","xbrli:monetaryItemType","instant"]
["OtherCurrentAssets","Other current assets","xbrli:monetaryItemType","instant"]
["CurrentAssets","Total current assets","xbrli:monetaryItemType","instant"]
["NoncurrentAssetsClassifiedAsHeldForSale","Non-current assets classified as held for sale","xbrli:monetaryItemType","instant"]
["RegulatoryDeferralAccountDebitBalancesAndRelatedDeferredTaxAssets","Regulatory deferral account debit balances and related deferred tax Assets","xbrli:monetaryItemType","instant"]
["Assets","Total assets","xbrli:monetaryItemType","instant"]
["EquityShareCapital","Equity share capital","xbrli:monetaryItemType","instant"]
["OtherEquity","Other equity","xbrli:monetaryItemType","instant"]
["EquityAttributableToOwnersOfParent","Total equity attributable to owners of parent","xbrli:monetaryItemType","instant"]
["NonControllingInterest","Non controlling interest","xbrli:monetaryItemType","instant"]
["Equity","Total equity","xbrli:monetaryItemType","instant"]
["BorrowingsNoncurrent","Borrowings, non-current","xbrli:monetaryItemType","instant"]
["TradePayablesNoncurrent","Trade payables, non-current","xbrli:monetaryItemType","instant"]
["OtherNoncurrentFinancialLiabilities","Other non-current financial liabilities","xbrli:monetaryItemType","instant"]
["NoncurrentFinancialLiabilities","Total non-current financial liabilities","xbrli:monetaryItemType","instant"]
["ProvisionsNoncurrent","Provisions, non-current","xbrli:monetaryItemType","instant"]
["DeferredTaxLiabilitiesNet","Deferred tax liabilities (net)","xbrli:monetaryItemType","instant"]
["DeferredGovernmentGrantsNoncurrent","Deferred government grants, Non-current","xbrli:monetaryItemType","instant"]
["OtherNoncurrentLiabilities","Other non-current liabilities","xbrli:monetaryItemType","instant"]
["NoncurrentLiabilities","Total non-current liabilities","xbrli:monetaryItemType","instant"]
["BorrowingsCurrent","Borrowings, current","xbrli:monetaryItemType","instant"]
["TradePayablesCurrent","Trade payables, current","xbrli:monetaryItemType","instant"]
["OtherCurrentFinancialLiabilities","Other current financial liabilities","xbrli:monetaryItemType","instant"]
["CurrentFinancialLiabilities","Total current financial liabilities","xbrli:monetaryItemType","instant"]
["OtherCurrentLiabilities","Other current liabilities","xbrli:monetaryItemType","instant"]
["ProvisionsCurrent","Provisions, current","xbrli:monetaryItemType","instant"]
["CurrentTaxLiabilities","Current tax liabilities (Net)","xbrli:monetaryItemType","instant"]
["DeferredGovernmentGrantsCurrent","Deferred government grants, Current","xbrli:monetaryItemType","instant"]
["CurrentLiabilities","Total current liabilities","xbrli:monetaryItemType","instant"]
["LiabilitiesDirectlyAssociatedWithAssetsInDisposalGroupClassifiedAsHeldForSale","Liabilities directly associated with assets in disposal group classified as held for sale","xbrli:monetaryItemType","instant"]
["RegulatoryDeferralAccountCreditBalancesAndRelatedDeferredTaxLiability","Regulatory deferral account credit balances and related deferred tax liability","xbrli:monetaryItemType","instant"]
["Liabilities","Total liabilities","xbrli:monetaryItemType","instant"]
["EquityAndLiabilities","Total equity and liabilites","xbrli:monetaryItemType","instant","\"Total Assets\" must match with \"Total Equity and Liabilities\" mentioned in sheet \"Asset Liabilities\""]
["DisclosureOfNotesOnAssetsAndLiabilitiesExplanatoryTextBlock","Disclosure of notes on assets and liabilities","nonnum:textBlockItemType","duration"]
["Segment"]
["DescriptionOfReportableSegment","Description Of reportable segments","xbrli:stringItemType","duration"]
["SegmentRevenue","Segment revenue","xbrli:monetaryItemType","duration"]
["SegmentRevenue","Total Segment Revenue","xbrli:monetaryItemType","duration"]
["InterSegmentRevenue","Less: Inter segment revenue","xbrli:monetaryItemType","duration"]
["SegmentRevenueFromOperations","Revenue  from  Operations ","xbrli:monetaryItemType","duration"]
["SegmentProfitLossBeforeTaxAndFinanceCosts","Profit (loss) before tax and interest","xbrli:monetaryItemType","duration"]
["SegmentProfitLossBeforeTaxAndFinanceCosts","Total  Profit  before  tax","xbrli:monetaryItemType","duration"]
["SegmentFinanceCosts","i. Finance cost","xbrli:monetaryItemType","duration"]
["OtherUnallocableExpenditureNetOffUnAllocableIncome","ii. Other Unallocable Expenditure net off Unallocable income","xbrli:monetaryItemType","duration"]
["SegmentProfitBeforeTax","Profit before tax","xbrli:monetaryItemType","duration"]
["SegmentAssets","Segment Asset ","xbrli:monetaryItemType","instant"]
["SegmentAssets","Total Segment Asset","xbrli:monetaryItemType","instant"]
["UnAllocableAssets","Un-allocable Assets","xbrli:monetaryItemType","instant"]
["NetSegmentAssets","Net Segment Asset","xbrli:monetaryItemType","instant"]
["SegmentLiabilities","Segment Liabilities","xbrli:monetaryItemType","instant"]
["SegmentLiabilities","Total Segment Liabilities","xbrli:monetaryItemType","instant"]
["UnAllocableLiabilities","Un-allocable Liabilities","xbrli:monetaryItemType","instant"]
["NetSegmentLiabilities","Net Segment Liabilities","xbrli:monetaryItemType","instant"]
["DisclosureOfNotesOnSegmentsExplanatoryTextBlock","Disclosure of notes on segments","nonnum:textBlockItemType","duration"]
["OCI"]
["DescriptionOfItemThatWillNotBeReclassifiedToProfitAndLoss","Description of item that will not be reclassified to profit and loss","xbrli:stringItemType","duration"]
["AmountOfItemThatWillNotBeReclassifiedToProfitAndLoss","Amount of item that will not be reclassified to profit and loss","xbrli:monetaryItemType","duration"]
["DescriptionOfItemThatWillBeReclassifiedToProfitAndLoss","Description of item that will be reclassified to profit and loss","xbrli:stringItemType","duration"]
["AmountOfItemThatWillBeReclassifiedToProfitAndLoss","Amount of item that will be reclassified to profit and loss","xbrli:monetaryItemType","duration"]
["AmountOfItemThatWillNotBeReclassifiedToProfitAndLoss","Amount of item that will not be reclassified to profit and loss","xbrli:monetaryItemType","duration"]
["IncomeTaxRelatingToItmesThatWillNotBeReclassifiedToProfitOrLoss","Income tax relating to items that will not be reclassified to profit or loss ","xbrli:monetaryItemType","duration"]
["AmountOfItemThatWillBeReclassifiedToProfitAndLoss","Amount of item that will be reclassified to profit and loss","xbrli:monetaryItemType","duration"]
["IncomeTaxRelatingToItmesThatWillBeReclassifiedToProfitOrLoss","Income tax relating to items that will be reclassified to profit or loss ","xbrli:monetaryItemType","duration"]
["OtherComprehensiveIncome","Total Other comprehensive income","xbrli:monetaryItemType","duration"]

{"sheet":"Asset Liabilities","index":4,"n_rows":85,"n_cols":14,"rows_kept":85,"cut":false,"hidden":true,"merged":[[7,3,7,5],[13,3,13,5],[12,3,12,4],[8,3,8,4],[9,3,9,4],[10,3,10,4],[11,3,11,4]]}
[]
[]
[]
[]
[]
[]
[]
[null,null,null,"Statement of Asset and Liabilities"]
[null,null,null,"Particulars",null,"Current year ended        (dd-mm-yyyy)"]
[null,null,null,"Date of start of reporting period"]
[null,null,null,"Date of end of reporting period"]
[null,null,null,"Whether results are audited or unaudited",null,null,null,null,null,null,null,null,null,"Audited"]
[null,null,null,"Nature of report standalone or consolidated",null,{"$f":"+IF(COUNTA('General Info'!E20),'General Info'!E20,\"\")","v":"Standalone"},null,null,null,null,null,null,null,"Unaudited"]
[]
[null,null,null,null,"  Assets"]
[null,null,null,1,"    Non-current assets"]
[null,null,null,null,"Property, plant and equipment"]
[null,null,null,null,"Capital work-in-progress"]
[null,null,null,null,"Investment property"]
[null,null,null,null,"Goodwill"]
[null,null,null,null,"Other intangible assets"]
[null,null,null,null,"Intangible assets under development"]
[null,null,null,null,"Biological assets other than bearer plants"]
[null,null,null,null,"Investments accounted for using equity method"]
[null,null,null,null,"Non-current financial assets"]
[null,null,null,null,"Non-current investments"]
[null,null,null,null,"Trade receivables, non-current"]
[null,null,null,null,"Loans, non-current"]
[null,null,null,null,"Other non-current financial assets"]
[null,null,null,null,"Total non-current financial assets",{"$f":"IF(COUNT(F26:F29),SUM(F26:F29),\"\")","v":""}]
[null,null,null,null,"Deferred tax assets (net)"]
[null,null,null,null,"Other non-current assets"]
[null,null,null,null,"Total non-current assets",{"$f":"IF(COUNT(F17:F24,F26:F29,F31:F32),SUM(F17:F24,F26:F29,F31:F32),\"\")","v":""}]
[null,null,null,2,"Current assets"]
[null,null,null,null,"Inventories"]
[null,null,null,null,"Current financial asset"]
[null,null,null,null,"Current investments"]
[null,null,null,null,"Trade receivables, current"]
[null,null,null,null,"Cash and cash equivalents"]
[null,null,null,null,"Bank balance other than cash and cash equivalents"]
[null,null,null,null,"Loans, current"]
[null,null,null,null,"Other current financial assets"]
[null,null,null,null,"Total current financial assets",{"$f":"IF(COUNT(F37:F42),SUM(F37:F42),\"\")","v":""}]
[null,null,null,null,"Current tax assets (net)"]
[null,null,null,null,"Other current assets"]
[null,null,null,null,"Total current assets",{"$f":"IF(COUNT(F35,F37:F42,F44:F45),SUM(F35,F37:F42,F44:F45),\"\")","v":""}]
[null,null,null,3,"Non-current assets classified as held for sale"]
[null,null,null,4,"Regulatory deferral account debit balances and related deferred tax Assets"]
[null,null,null,null,"Total assets",{"$f":"IF(COUNT(F33,F46:F48),SUM(F33,F46:F48),\"\")","v":""}]
[null,null,null,null,"Equity and liabilities"]
[null,null,null,1,"Equity"]
[null,null,null,null,"Equity attributable to owners of parent"]
[null,null,null,null,"Equity share capital"]
[null,null,null,null,"Other equity"]
[null,null,null,null,"Total equity attributable to owners of parent",{"$f":"IF(COUNT(F53:F54),SUM(F53:F54),\"\")","v":""}]
[null,null,null,null,"Non controlling interest"]
[null,null,null,null,"Total equity",{"$f":"IF(COUNT(F55:F56),SUM(F55:F56),\"\")","v":""}]
[null,null,null,2,"Liabilities"]
[null,null,null,null,"Non-current liabilities"]
[null,null,null,null,"Non-current financial liabilities"]
[null,null,null,null,"Borrowings, non-current"]
[null,null,null,null,"Trade payables, non-current"]
[null,null,null,null,"Other non-current financial liabilities"]
[null,null,null,null,"Total non-current financial liabilities",{"$f":"IF(COUNT(F61:F63),SUM(F61:F63),\"\")","v":""}]
[null,null,null,null,"Provisions, non-current"]
[null,null,null,null,"Deferred tax liabilities (net)"]
[null,null,null,null,"Deferred government grants, Non-current"]
[null,null,null,null,"Other non-current liabilities"]
[null,null,null,null,"Total non-current liabilities",{"$f":"IF(COUNT(F61:F63,F65:F68),SUM(F61:F63,F65:F68),\"\")","v":""}]
[null,null,null,null,"Current liabilities"]
[null,null,null,null,"Current financial liabilities"]
[null,null,null,null,"Borrowings, current"]
[null,null,null,null,"Trade payables, current"]
[null,null,null,null,"Other current financial liabilities"]
[null,null,null,null,"Total current financial liabilities",{"$f":"IF(COUNT(F72:F74),SUM(F72:F74),\"\")","v":""}]
[null,null,null,null,"Other current liabilities"]
[null,null,null,null,"Provisions, current"]
[null,null,null,null,"Current tax liabilities (Net)"]
[null,null,null,null,"Deferred government grants, Current"]
[null,null,null,null,"Total current liabilities",{"$f":"IF(COUNT(F72:F74,F76:F79),SUM(F72:F74,F76:F79),\"\")","v":""}]
[null,null,null,3,"Liabilities directly associated with assets in disposal group classified as held for sale"]
[null,null,null,4,"Regulatory deferral account credit balances and related deferred tax liability"]
[null,null,null,null,"Total liabilities",{"$f":"IF(COUNT(F69,F80,F81:F82),SUM(F69,F80,F81:F82),\"\")","v":""}]
[null,null,null,null,"Total equity and liabilites",{"$f":"IF(COUNT(F57,F83),SUM(F57,F83),\"\")","v":""}]
[null,null,null,null,"Disclosure of notes on assets and liabilities"]

{"sheet":"Segment","index":5,"n_rows":99,"n_cols":19,"rows_kept":99,"cut":false,"hidden":false,"merged":[[77,5,77,6],[78,5,78,6],[7,3,7,6],[14,5,14,6],[34,5,34,6],[57,5,57,6],[8,3,8,4],[9,3,9,4],[10,3,10,4],[11,3,11,4],[12,3,12,4],[13,5,13,6],[35,5,35,6],[56,5,56,6]]}
[]
[]
[]
[]
[]
[]
[]
[null,null,null,"Format for Reporting Segmenet wise Revenue, Results and Capital Employed along with the company results"]
[null,null,null,"Particulars",null,"3 months/ 6 month ended (dd-mm-yyyy)","Year to date figures for current period ended                (dd-mm-yyyy)"]
[null,null,null,"Date of start of reporting period",null,"01-04-2018","01-04-2018"]
[null,null,null,"Date of end of reporting period",null,"30-06-2018","30-06-2018"]
[null,null,null,"Whether accounts are audited or unaudited",null,"Unaudited","Unaudited",null,null,null,null,null,null,null,"Audited"]
[null,null,null,"Nature of report standalone or consolidated",null,{"$f":"+IF(COUNTA('General Info'!E20),'General Info'!E20,\"\")","v":"Standalone"},{"$f":"+IF(COUNTA('General Info'!E20),'General Info'!E20,\"\")","v":"Standalone"},null,null,null,null,null,null,null,"Unaudited"]
[null,null,null,1,"Segment Revenue (Income) "]
[null,null,null,null,"(net sale/income from each segment should be disclosed)"]
[null,null,null,1,null,null,{"$f":"+IF(COUNT(F16),+F16,\"\")","v":""},null,null,null,null,null,null,null,null,null,null,null,{"$f":"+IF(COUNT(F16),+F16,\"\")","v":""}]
[null,null,null,2,null,null,"",null,null,null,null,null,null,null,null,null,null,null,{"$f":"+IF(COUNT(F17),+F17,\"\")","v":""}]
[null,null,null,3,null,null,"",null,null,null,null,null,null,null,null,null,null,null,""]
[null,null,null,4,null,null,"",null,null,null,null,null,null,null,null,null,null,null,""]
[null,null,null,5,null,null,"",null,null,null,null,null,null,null,null,null,null,null,""]
[null,null,null,6,null,null,"",null,null,null,null,null,null,null,null,null,null,null,""]
[null,null,null,7,null,null,"",null,null,null,null,null,null,null,null,null,null,null,""]
[null,null,null,8,null,null,"",null,null,null,null,null,null,null,null,null,null,null,""]
[null,null,null,9,null,null,"",null,null,null,null,null,null,null,null,null,null,null,""]
[null,null,null,10,null,null,"",null,null,null,null,null,null,null,null,null,null,null,""]
[null,null,null,11,null,null,"",null,null,null,null,null,null,null,null,null,null,null,""]
[null,null,null,12,null,null,"",null,null,null,null,null,null,null,null,null,null,null,""]
[null,null,null,13,null,null,"",null,null,null,null,null,null,null,null,null,null,null,""]
[null,null,null,14,null,null,"",null,null,null,null,null,null,null,null,null,null,null,""]
[null,null,null,15,null,null,"",null,null,null,null,null,null,null,null,null,null,null,""]
[null,null,null,null,"Total Segment Revenue",{"$f":"+IF(COUNT(F16:F30),SUM(F16:F30),\"\")","v":""},{"$f":"+IF(COUNT(G16:G30),SUM(G16:G30),\"\")","v":""},null,null,null,null,null,null,null,null,null,null,null,""]
[null,null,null,null,"Less: Inter segment revenue",null,{"$f":"+IF(COUNT(F32),+F32,\"\")","v":""},null,null,null,null,null,null,null,null,null,null,null,""]
[null,null,null,null,"Revenue  from  operations ",{"$f":"+IF(COUNT(F31:F32),SUM(F31)-SUM(F32),\"\")","v":""},{"$f":"+IF(COUNT(G31:G32),SUM(G31)-SUM(G32),\"\")","v":""},null,null,null,null,null,null,null,null,null,null,null,""]
[null,null,null,null,null,null,null,null,null,null,null,null,null,null,null,null,null,null,""]
[null,null,null,2,"Segment Result",null,null,null,null,null,null,null,null,null,null,null,null,null,""]
[null,null,null,null,"Profit (+) / Loss (-) before tax and interest from each segment",null,null,null,null,null,null,null,null,null,null,null,null,null,""]
[null,null,null,1,{"$f":"+IF(COUNTA(E16),+E16,\"\")","v":""},null,{"$f":"+IF(COUNT(F37),+F37,\"\")","v":""},null,null,null,null,null,null,null,null,null,null,null,""]
[null,null,null,2,{"$f":"+IF(COUNTA(E17),+E17,\"\")","v":""},null,"",null,null,null,null,null,null,null,null,null,null,null,""]
[null,null,null,3,"",null,"",null,null,null,null,null,null,null,null,null,null,null,""]
[null,null,null,4,"",null,"",null,null,null,null,null,null,null,null,null,null,null,""]
[null,null,null,5,"",null,"",null,null,null,null,null,null,null,null,null,null,null,""]
[null,null,null,6,"",null,"",null,null,null,null,null,null,null,null,null,null,null,""]
[null,null,null,7,"",null,"",null,null,null,null,null,null,null,null,null,null,null,""]
[null,null,null,8,"",null,"",null,null,null,null,null,null,null,null,null,null,null,""]
[null,null,null,9,"",null,"",null,null,null,null,null,null,null,null,null,null,null,""]
[null,null,null,10,"",null,"",null,null,null,null,null,null,null,null,null,null,null,""]
[null,null,null,11,"",null,"",null,null,null,null,null,null,null,null,null,null,null,""]
[null,null,null,12,"",null,"",null,null,null,null,null,null,null,null,null,null,null,""]
[null,null,null,13,"",null,"",null,null,null,null,null,null,null,null,null,null,null,""]
[null,null,null,14,"",null,"",null,null,null,null,null,null,null,null,null,null,null,""]
[null,null,null,15,"",null,"",null,null,null,null,null,null,null,null,null,null,null,""]
[null,null,null,null,"Total  Profit  before  tax",{"$f":"+IF(COUNT(F37:F51),SUM(F37:F51),\"\")","v":""},{"$f":"+IF(COUNT(G37:G51),SUM(G37:G51),\"\")","v":""},null,null,null,null,null,null,null,null,null,null,null,""]
[null,null,null,null,"i. Finance cost",null,{"$f":"+IF(COUNT(F53),+F53,\"\")","v":""},null,null,null,null,null,null,null,null,null,null,null,""]
[null,null,null,null,"ii. Other Unallocable Expenditure net off Unallocable income",null,{"$f":"+IF(COUNT(F54),+F54,\"\")","v":""},null,null,null,null,null,null,null,null,null,null,null,""]
[null,null,null,null,"Profit before tax",{"$f":"+IF(COUNT(F52:F54),SUM(F52)-SUM(F53)-SUM(F54),\"\")","v":""},{"$f":"+IF(COUNT(G52:G54),SUM(G52)-SUM(G53)-SUM(G54),\"\")","v":""},null,null,null,null,null,null,null,null,null,null,null,""]
[null,null,null,null,null,null,null,null,null,null,null,null,null,null,null,null,null,null,""]
[null,null,null,3,"(Segment Asset - Segment Liabilities)",null,null,null,null,null,null,null,null,null,null,null,null,null,""]
[null,null,null,null,"Segment Asset ",null,null,null,null,null,null,null,null,null,null,null,null,null,""]
[null,null,null,{"$f":"+D58+1","v":1},{"$f":"+IF(COUNTA(E16),+E16,\"\")","v":""},null,{"$f":"+IF(COUNT(F59),+F59,\"\")","v":""},null,null,null,null,null,null,null,null,null,null,null,""]
[null,null,null,2,"",null,"",null,null,null,null,null,null,null,null,null,null,null,""]
[null,null,null,3,"",null,"",null,null,null,null,null,null,null,null,null,null,null,""]
[null,null,null,4,"",null,"",null,null,null,null,null,null,null,null,null,null,null,""]
[null,null,null,5,"",null,"",null,null,null,null,null,null,null,null,null,null,null,""]
[null,null,null,6,"",null,"",null,null,null,null,null,null,null,null,null,null,null,""]
[null,null,null,7,"",null,"",null,null,null,null,null,null,null,null,null,null,null,""]
[null,null,null,8,"",null,"",null,null,null,null,null,null,null,null,null,null,null,""]
[null,null,null,9,"",null,"",null,null,null,null,null,null,null,null,null,null,null,""]
[null,null,null,{"$f":"+D67+1","v":10},"",null,"",null,null,null,null,null,null,null,null,null,null,null,""]
[null,null,null,11,"",null,"",null,null,null,null,null,null,null,null,null,null,null,""]
[null,null,null,12,"",null,"",null,null,null,null,null,null,null,null,null,null,null,""]
[null,null,null,13,"",null,"",null,null,null,null,null,null,null,null,null,null,null,""]
[null,null,null,14,"",null,"",null,null,null,null,null,null,null,null,null,null,null,""]
[null,null,null,15,"",null,"",null,null,null,null,null,null,null,null,null,null,null,""]
[null,null,null,null,"Total Segment Asset",{"$f":"+IF(COUNT(F59:F73),SUM(F59:F73),\"\")","v":""},{"$f":"+IF(COUNT(G59:G73),SUM(G59:G73),\"\")","v":""},null,null,null,null,null,null,null,null,null,null,null,""]
[null,null,null,null,"Un-allocable Assets",null,{"$f":"+IF(COUNT(F75),+F75,\"\")","v":""},null,null,null,null,null,null,null,null,null,null,null,""]
[null,null,null,null,"Net Segment Asset",{"$f":"+IF(COUNT(F74:F75),SUM(F74)+SUM(F75),\"\")","v":""},{"$f":"+IF(COUNT(G74:G75),SUM(G74)+SUM(G75),\"\")","v":""},null,null,null,null,null,null,null,null,null,null,null,""]
[null,null,null,null,null,null,null,null,null,null,null,null,null,null,null,null,null,null,""]
[null,null,null,4,"Segment Liabilities",null,null,null,null,null,null,null,null,null,null,null,null,null,""]
[null,null,null,null,"Segment Liabilities",null,null,null,null,null,null,null,null,null,null,null,null,null,""]
[null,null,null,1,{"$f":"+IF(COUNTA(E16),+E16,\"\")","v":""},null,{"$f":"+IF(COUNT(F80),+F80,\"\")","v":""},null,null,null,null,null,null,null,null,null,null,null,""]
[null,null,null,2,{"$f":"+IF(COUNTA(E17),+E17,\"\")","v":""},null,"",null,null,null,null,null,null,null,null,null,null,null,{"$f":"+IF(COUNT(F81),+F81,\"\")","v":""}]
[null,null,null,3,{"$f":"+IF(COUNTA(E18),+E18,\"\")","v":""},null,"",null,null,null,null,null,null,null,null,null,null,null,""]
[null,null,null,4,"",null,"",null,null,null,null,null,null,null,null,null,null,null,""]
[null,null,null,5,"",null,"",null,null,null,null,null,null,null,null,null,null,null,""]
[null,null,null,6,"",null,"",null,null,null,null,null,null,null,null,null,null,null,""]
[null,null,null,7,"",null,"",null,null,null,null,null,null,null,null,null,null,null,""]
[null,null,null,8,"",null,"",null,null,null,null,null,null,null,null,null,null,null,""]
[null,null,null,9,{"$f":"+IF(COUNTA(E24),+E24,\"\")","v":""},null,"",null,null,null,null,null,null,null,null,null,null,null,""]
[null,null,null,10,{"$f":"+IF(COUNTA(E25),+E25,\"\")","v":""},null,"",null,null,null,null,null,null,null,null,null,null,null,""]
[null,null,null,11,{"$f":"+IF(COUNTA(E26),+E26,\"\")","v":""},null,"",null,null,null,null,null,null,null,null,null,null,null,""]
[null,null,null,12,"",null,"",null,null,null,null,null,null,null,null,null,null,null,""]
[null,null,null,13,"",null,"",null,null,null,null,null,null,null,null,null,null,null,""]
[null,null,null,14,"",null,"",null,null,null,null,null,null,null,null,null,null,null,""]
[null,null,null,15,"",null,"",null,null,null,null,null,null,null,null,null,null,null,""]
[null,null,null,null,"Total Segment Liabilities",{"$f":"+IF(COUNT(F80:F94),SUM(F80:F94),\"\")","v":""},{"$f":"+IF(COUNT(G80:G94),SUM(G80:G94),\"\")","v":""},null,null,null,null,null,null,null,null,null,null,null,""]
[null,null,null,null,"Un-allocable Liabilities",null,{"$f":"+IF(COUNT(F96),+F96,\"\")","v":""},null,null,null,null,null,null,null,null,null,null,null,""]
[null,null,null,null,"Net Segment Liabilities",{"$f":"+IF(COUNT(F95:F96),SUM(F95)+SUM(F96),\"\")","v":""},{"$f":"+IF(COUNT(G95:G96),SUM(G95)+SUM(G96),\"\")","v":""},null,null,null,null,null,null,null,null,null,null,null,""]
[]
[null,null,null,null,"Disclosure of notes on segments"]

{"sheet":"TextBlock","index":6,"n_rows":1,"n_cols":5,"rows_kept":1,"cut":false,"hidden":true,"merged":[]}
[null,null,null,null,2]

{"sheet":"OCI","index":7,"n_rows":21,"n_cols":19,"rows_kept":21,"cut":false,"hidden":false,"merged":[[5,1,5,4],[11,3,11,4],[12,3,12,4],[16,3,16,4],[6,1,6,2]]}
[null,null,null,null,0,0,0]
[null,null,null,null,{"$f":"+IF(COUNT(D2),D2,\"\")","v":""},null,null,null,null,null,null,null,null,null,null,null,null,null,{"$f":"+IF(COUNT(D2),D2,\"\")","v":""}]
[]
[]
[]
[null,"Other Comprehensive Income"]
[null,"Particulars",null,"3 months/ 6 month ended         (dd-mm-yyyy)","Year to date figures for current period ended                              (dd-mm-yyyy)"]
[null,"A","Date of start of reporting period","01-04-2018","01-04-2018"]
[null,"B","Date of end of reporting period","30-06-2018","30-06-2018"]
[null,"C","Whether results are audited or unaudited",{"$f":"+IF(COUNTA('Financial Results'!F12),'Financial Results'!F12,\"\")","v":"Unaudited"},{"$f":"+IF(COUNTA('Financial Results'!G12),'Financial Results'!G12,\"\")","v":"Unaudited"}]
[null,"D","Nature of report standalone or consolidated",{"$f":"+IF(COUNTA('Financial Results'!F13),'Financial Results'!F13,\"\")","v":"Standalone"},{"$f":"+IF(COUNTA('Financial Results'!G13),'Financial Results'!G13,\"\")","v":"Standalone"}]
[null,null,"Other comprehensive income [Abstract]"]
[null,1,"Amount of items that will not be reclassified to profit and loss"]
[]
[null,null,"Total Amount of items that will not be reclassified to profit and loss",{"$f":"IF(COUNT(D13:D14),SUM(D13:D14),\"\")","v":""},{"$f":"IF(COUNT(E13:E14),SUM(E13:E14),\"\")","v":""}]
[null,2,"Income tax relating to items that will not be reclassified to profit or loss ",0.17]
[null,3,"Amount of items that will be reclassified to profit and loss"]
[]
[null,null,"Total Amount of items that will be reclassified to profit and loss",{"$f":"IF(COUNT(D17:D18),SUM(D17:D18),\"\")","v":""},{"$f":"IF(COUNT(E17:E18),SUM(E17:E18),\"\")","v":""}]
[null,4,"Income tax relating to items that will be reclassified to profit or loss ",0.05]
[null,5,"Total Other comprehensive income",{"$f":"IF(COUNT(D15,D16,D19,D20),SUM(D15)-SUM(D16)+SUM(D19)-SUM(D20),\"\")","v":-0.22000000000000003},{"$f":"IF(COUNT(E15,E16,E19,E20),SUM(E15)-SUM(E16)+SUM(E19)-SUM(E20),\"\")","v":""}]